[Event "FIDE WCCC Open-12 2024"]
[Site "Montesilvano"]
[Date "2024.11.24"]
[Round "9.35"]
[White "Konstantinides, Savvas"]
[Black "Vaidyanathan, Adithya"]
[Result "1-0"]
[ECO "B38"]
[WhiteElo "1839"]
[BlackElo "2018"]
[Annotator "NA RC"]
[PlyCount "89"]
[EventDate "2024.11.18"]
[EventType "swiss"]
[EventCountry "ITA"]
[SourceTitle "playchess.com"]
[Source "ChessBase"]
[SourceQuality "1"]
[TimeControl "5400+30"]

1. e4 {[%emt 0:00:07]} c5 {[%emt 0:00:01]} 2. Nf3 {[%emt 0:00:07]} Nc6 {[%emt 0:00:03]} 3. d4 {[%emt 0:00:05]} cxd4 {[%emt 0:00:02]} 4. Nxd4 {[%emt 0:00:18]} g6 {[%emt 0:00:02]} 5. c4 {[%emt 0:00:09]} Bg7 {[%emt 0:00:04]} 6. Be3 {[%emt 0:00:09]} Nf6 {[%emt 0:00:05]} 7. Nc3 {[%emt 0:00:10]} O-O {[%emt 0:00:06]} 8. Be2 {[%emt 0:00:11]} d6 {[%emt 0:00:04]} 9. f3 {[%emt 0:00:06]} Bd7 {[%emt 0:00:04]} 10. Qd2 {[%emt 0:00:48]} Nxd4 {[%emt 0:00:15]} 11. Bxd4 {[%emt 1:33:50]} a5 {[%emt 0:00:09]} 12. h4 {[%emt 0:00:00]} a4 {[%emt 0:08:41]} 13. h5 {[%emt 0:00:00]} Qa5 {[%emt 0:16:06]} 14. h6 {[%emt 0:00:00]} Bh8 {[%emt 0:00:26]} 15. O-O-O {[%emt 0:00:00]} Be6 {[%emt 0:11:37]} 16. Kb1 {[%emt 0:00:00]} Rfc8 {[%emt 0:02:49]} 17. Nd5 {[%emt 0:00:00]} Bxd5 {[%emt 0:06:12]} 18. cxd5 {[%emt 0:00:00]} Qxd2 {[%emt 0:01:26]} 19. Rxd2 {[%emt 0:00:00]} Nh5 {[%emt 0:00:19]} 20. Bxh8 {[%emt 0:00:00]} Kxh8 {[%emt 0:00:19]} 21. Rc1 {[%emt 0:00:00]} Rc5 {[%emt 0:18:20]} 22. Rd4 {[%emt 0:00:00]} Ng3 {[%emt 0:10:01]} 23. Bd3 {[%emt 0:00:00]} Kg8 {[%emt 0:01:00]} 24. Rb4 {[%emt 0:00:00]} Rxc1+ {[%emt 0:08:46]} 25. Kxc1 {[%emt 0:00:00]} Ra7 {[%emt 0:00:12]} 26. a3 {[%emt 0:00:00]} f5 {[%emt 0:02:51]} 27. Bb5 {[%emt 0:00:00]} Kf7 {[%emt 0:06:53]} 28. Kd2 {[%emt 0:00:00]} fxe4 {[%emt 0:00:52]} 29. fxe4 {[%emt 0:00:00]} g5 {[%emt 0:00:49]} 30. Ke3 {[%emt 0:00:00]} Nh5 {[%emt 0:02:08]} 31. Bxa4 {[%emt 0:00:00]} Nf6 {[%emt 0:00:17]} 32. Kd4 {[%emt 0:00:00]} Kg6 {[%emt 0:00:37]} 33. e5 {[%emt 0:00:00]} dxe5+ {[%emt 0:00:24]} 34. Kxe5 {[%emt 0:00:00]} Ra6 {[%emt 0:04:49]} 35. Bc2+ {[%emt 0:00:00]} Kxh6 {[%emt 0:00:37]} 36. Rxb7 {[%emt 0:00:00]} Ng8 {[%emt 0:00:32]} 37. a4 {[%emt 0:00:00]} Kg7 {[%emt 0:00:23]} 38. b4 {[%emt 0:00:00]} h6 {[%emt 0:00:30]} 39. a5 {[%emt 0:00:00]} Kf7 {[%emt 0:00:23]} 40. Bd3 {[%emt 0:00:00]} Rd6 {[%emt 0:00:29]} 41. a6 {[%emt 0:00:00]} Nf6 {[%emt 0:00:07]} 42. Bc4 {[%emt 0:00:00]} Kg6 {[%emt 0:01:08]} 43. a7 {[%emt 0:00:00]} Rd8 {[%emt 0:00:15]} 44. Rxe7 {[%emt 0:00:00]} Nd7+ {[%emt 0:00:13]} 45. Rxd7 {[%emt 0:00:00]} 1-0

[Event "FIDE WCCC Open-12 2024"]
[Site "Montesilvano"]
[Date "2024.11.24"]
[Round "9.36"]
[White "Lee, Tsuen Jin Aiesec"]
[Black "Sason, Noam"]
[Result "0-1"]
[ECO "B51"]
[WhiteElo "1806"]
[BlackElo "2017"]
[Annotator "NA RC"]
[PlyCount "62"]
[EventDate "2024.11.18"]
[EventType "swiss"]
[EventCountry "ITA"]
[SourceTitle "playchess.com"]
[Source "ChessBase"]
[SourceQuality "1"]
[TimeControl "5400+30"]

1. e4 {[%emt 0:00:02]} c5 {[%emt 0:00:08]} 2. Nf3 {[%emt 0:00:02]} d6 {[%emt 0:00:07]} 3. Bb5+ {[%emt 0:00:02]} Nd7 {[%emt 0:00:11]} 4. c4 {[%emt 0:00:04]} e5 {[%emt 0:00:50]} 5. Nc3 {[%emt 0:00:09]} Ne7 {[%emt 0:00:23]} 6. d3 {[%emt 0:00:33]} Nc6 {[%emt 0:00:14]} 7. Nd5 {[%emt 0:02:53]} a6 {[%emt 0:00:14]} 8. Ba4 {[%emt 0:00:26]} Nb6 {[%emt 0:01:02]} 9. Bxc6+ {[%emt 0:33:00]} bxc6 {[%emt 0:00:15]} 10. Nxb6 {[%emt 0:00:57]} Qxb6 {[%emt 0:00:08]} 11. O-O {[%emt 0:00:34]} Be7 {[%emt 0:01:37]} 12. Rb1 {[%emt 0:00:56]} O-O {[%emt 0:02:47]} 13. Be3 {[%emt 0:00:41]} a5 {[%emt 0:02:45]} 14. Kh1 {[%emt 0:01:22]} f5 {[%emt 0:03:29]} 15. exf5 {[%emt 0:56:19]} Bxf5 {[%emt 0:02:11]} 16. Bg5 {[%emt 0:00:00]} Bxg5 {[%emt 0:07:08]} 17. Nxg5 {[%emt 0:00:00]} d5 {[%emt 0:01:14]} 18. g4 {[%emt 0:00:00]} Qd8 {[%emt 0:07:02]} 19. h4 {[%emt 0:00:00]} Bd7 {[%emt 0:02:08]} 20. cxd5 {[%emt 0:00:00]} cxd5 {[%emt 0:07:05]} 21. Qb3 {[%emt 0:00:00]} Bxg4 {[%emt 0:07:50]} 22. f3 {[%emt 0:00:00]} Bf5 {[%emt 0:01:46]} 23. Rbc1 {[%emt 0:00:00]} Rb8 {[%emt 0:02:21]} 24. Qc3 {[%emt 0:00:00]} h6 {[%emt 0:00:41]} 25. Qxe5 {[%emt 0:00:00]} hxg5 {[%emt 0:01:06]} 26. Rxc5 {[%emt 0:00:00]} g4 {[%emt 0:01:11]} 27. Rc7 {[%emt 0:00:00]} Qxh4+ {[%emt 0:01:25]} 28. Kg1 {[%emt 0:00:00]} Qf6 {[%emt 0:00:48]} 29. Qxd5+ {[%emt 0:00:00]} Be6 {[%emt 0:00:14]} 30. Qe4 {[%emt 0:00:00]} gxf3 {[%emt 0:00:19]} 31. Rf2 {[%emt 0:00:00]} Rxb2 {[%emt 0:02:45]} 0-1

[Event "FIDE WCCC Open-12 2024"]
[Site "Montesilvano"]
[Date "2024.11.24"]
[Round "9.37"]
[White "Vorobyov, Radmir"]
[Black "Dauren, Darmen"]
[Result "0-1"]
[ECO "B01"]
[WhiteElo "2017"]
[BlackElo "1820"]
[Annotator "NA RC"]
[PlyCount "99"]
[EventDate "2024.11.18"]
[EventType "swiss"]
[EventCountry "ITA"]
[SourceTitle "playchess.com"]
[Source "ChessBase"]
[SourceQuality "1"]
[TimeControl "5400+30"]

1. e4 {[%emt 0:00:02]} d5 {[%emt 0:00:23]} 2. exd5 {[%emt 0:00:07]} Nf6 {[%emt 0:00:04]} 3. d4 {[%emt 0:01:23]} Nxd5 {[%emt 0:00:41]} 4. c4 {[%emt 0:01:09]} Nb6 {[%emt 0:01:30]} 5. Nc3 {[%emt 0:02:09]} g6 {[%emt 0:00:32]} 6. Bf4 {[%emt 0:04:01]} Bg7 {[%emt 0:03:17]} 7. Qd2 {[%emt 0:08:40]} O-O {[%emt 0:07:51]} 8. O-O-O {[%emt 0:02:04]} c6 {[%emt 0:07:16]} 9. Bh6 {[%emt 0:04:27]} Re8 {[%emt 0:07:19]} 10. Bxg7 {[%emt 0:16:09]} Kxg7 {[%emt 0:00:03]} 11. f4 {[%emt 0:00:07]} Qc7 {[%emt 0:03:27]} 12. Nf3 {[%emt 0:09:14]} Bg4 {[%emt 0:01:21]} 13. h3 {[%emt 0:04:01]} Bxf3 {[%emt 0:03:19]} 14. gxf3 {[%emt 0:00:06]} N8d7 {[%emt 0:07:19]} 15. Bd3 {[%emt 0:12:30]} Nf6 {[%emt 0:03:11]} 16. Rhg1 {[%emt 0:01:06]} Rad8 {[%emt 0:08:27]} 17. Qe3 {[%emt 0:04:33]} Qd7 {[%emt 0:02:10]} 18. Ne2 {[%emt 0:01:12]} e6 {[%emt 0:06:40]} 19. Rg5 {[%emt 0:04:23]} Nc8 {[%emt 0:03:17]} 20. Re5 {[%emt 0:10:31]} Ne7 {[%emt 0:05:07]} 21. h4 {[%emt 0:02:26]} h5 {[%emt 0:01:05]} 22. Rg1 {[%emt 0:07:18]} b6 {[%emt 0:02:48]} 23. Bc2 {[%emt 0:02:13]} b5 {[%emt 0:06:32]} 24. c5 {[%emt 0:01:10]} Nfd5 {[%emt 0:03:22]} 25. Qe4 {[%emt 0:01:01]} Nf5 {[%emt 0:01:31]} 26. Ng3 {[%emt 0:00:40]} Nxg3 {[%emt 0:05:00]} 27. Rxg3 {[%emt 0:00:05]} Kf8 {[%emt 0:00:47]} 28. Rg1 {[%emt 0:01:10]} Nf6 {[%emt 0:00:20]} 29. Qe3 {[%emt 0:00:31]} Qxd4 {[%emt 0:00:08]} 30. Rd1 {[%emt 0:00:23]} Qxe3+ {[%emt 0:00:11]} 31. Rxe3 {[%emt 0:00:04]} Rxd1+ {[%emt 0:00:06]} 32. Kxd1 {[%emt 0:00:43]} Ra8 {[%emt 0:01:08]} 33. Be4 {[%emt 0:00:42]} Nd5 {[%emt 0:00:27]} 34. Ra3 {[%emt 0:00:38]} Ke7 {[%emt 0:00:53]} 35. Kd2 {[%emt 0:00:28]} Kd7 {[%emt 0:00:14]} 36. Bxd5 {[%emt 0:00:26]} exd5 {[%emt 0:00:07]} 37. b4 {[%emt 0:00:13]} a6 {[%emt 0:01:20]} 38. Kd3 {[%emt 0:00:38]} Ke6 {[%emt 0:00:06]} 39. Kd4 {[%emt 0:00:37]} Kf5 {[%emt 0:00:11]} 40. Ke3 {[%emt 0:00:29]} Ra7 {[%emt 0:00:29]} 41. Ra5 {[%emt 0:00:25]} f6 {[%emt 0:02:38]} 42. Ra3 {[%emt 0:00:24]} d4+ {[%emt 0:00:28]} 43. Kd3 {[%emt 0:00:50]} Kxf4 {[%emt 0:00:33]} 44. Kxd4 {[%emt 0:00:05]} g5 {[%emt 0:00:06]} 45. hxg5 {[%emt 0:00:13]} fxg5 {[%emt 0:00:15]} 46. Rb3 {[%emt 0:00:26]} h4 {[%emt 0:00:24]} 47. Kd3 {[%emt 0:01:05]} Re7 {[%emt 0:00:26]} 48. Kd2 {[%emt 0:00:21]} h3 {[%emt 0:00:09]} 49. Rb1 {[%emt 0:00:20]} Kxf3 {[%emt 0:00:13]} 50. Kd3 {[%emt 0:01:32]} 0-1

[Event "FIDE WCCC Open-12 2024"]
[Site "Montesilvano"]
[Date "2024.11.24"]
[Round "9.38"]
[White "Simiyu Jadon"]
[Black "Zhandos, Akarys"]
[Result "0-1"]
[ECO "B33"]
[WhiteElo "1784"]
[BlackElo "1932"]
[Annotator "NA RC"]
[PlyCount "92"]
[EventDate "2024.11.18"]
[EventType "swiss"]
[EventCountry "ITA"]
[SourceTitle "playchess.com"]
[Source "ChessBase"]
[SourceQuality "1"]
[TimeControl "5400+30"]

1. e4 {[%emt 0:00:04]} c5 {[%emt 0:00:22]} 2. Nf3 {[%emt 0:00:07]} Nc6 {[%emt 0:01:33]} 3. d4 {[%emt 0:00:11]} cxd4 {[%emt 0:00:05]} 4. Nxd4 {[%emt 0:00:07]} Nf6 {[%emt 0:00:10]} 5. Nc3 {[%emt 0:00:07]} e5 {[%emt 0:00:11]} 6. Ndb5 {[%emt 0:00:06]} d6 {[%emt 0:00:04]} 7. Bg5 {[%emt 0:00:09]} a6 {[%emt 0:00:04]} 8. Na3 {[%emt 0:00:06]} b5 {[%emt 0:00:04]} 9. Nd5 {[%emt 0:00:06]} Be7 {[%emt 0:00:04]} 10. Bxf6 {[%emt 0:00:08]} Bxf6 {[%emt 0:00:02]} 11. c3 {[%emt 0:00:09]} O-O {[%emt 0:01:05]} 12. Nc2 {[%emt 0:00:06]} Bg5 {[%emt 0:00:17]} 13. h4 {[%emt 0:00:15]} Be7 {[%emt 0:06:37]} 14. Nce3 {[%emt 0:01:28]} Be6 {[%emt 0:00:09]} 15. g3 {[%emt 0:00:10]} Rb8 {[%emt 0:02:16]} 16. Qd3 {[%emt 0:02:29]} a5 {[%emt 0:00:15]} 17. Rd1 {[%emt 0:00:34]} b4 {[%emt 0:03:44]} 18. Be2 {[%emt 0:09:11]} Re8 {[%emt 0:12:55]} 19. Kf1 {[%emt 0:02:51]} Bf8 {[%emt 0:02:14]} 20. Kg2 {[%emt 0:00:35]} Qc8 {[%emt 0:02:38]} 21. h5 {[%emt 0:03:02]} h6 {[%emt 0:01:39]} 22. f4 {[%emt 0:05:56]} exf4 {[%emt 0:01:52]} 23. gxf4 {[%emt 0:00:11]} Bxd5 {[%emt 0:00:08]} 24. exd5 {[%emt 0:03:00]} Ne7 {[%emt 0:03:19]} 25. c4 {[%emt 0:01:11]} Kh8 {[%emt 0:03:19]} 26. Rdg1 {[%emt 0:01:38]} Ng8 {[%emt 0:02:55]} 27. Bd1 {[%emt 0:05:42]} Nf6 {[%emt 0:02:11]} 28. Bc2 {[%emt 0:01:25]} Rxe3 {[%emt 0:00:20]} 29. Qxe3 {[%emt 0:00:52]} Qxc4 {[%emt 0:00:07]} 30. Bb3 {[%emt 0:00:34]} Nxd5 {[%emt 0:01:19]} 31. Qf3 {[%emt 0:00:50]} Nxf4+ {[%emt 0:00:01]} 32. Kh2 {[%emt 0:02:00]} Qd4 {[%emt 0:01:33]} 33. Kg3 {[%emt 0:02:16]} Nd3 {[%emt 0:03:16]} 34. Rd1 {[%emt 0:14:04]} Qe5+ {[%emt 0:00:14]} 35. Kg2 {[%emt 0:00:33]} Nf4+ {[%emt 0:00:04]} 36. Kf2 {[%emt 0:01:10]} a4 {[%emt 0:04:13]} 37. Bxf7 {[%emt 0:02:45]} d5 {[%emt 0:01:19]} 38. Rh4 {[%emt 0:02:33]} Qxb2+ {[%emt 0:08:40]} 39. Kf1 {[%emt 0:00:48]} Bd6 {[%emt 0:01:52]} 40. Rxf4 {[%emt 0:01:28]} Bxf4 {[%emt 0:00:01]} 41. Qxf4 {[%emt 0:00:28]} Rf8 {[%emt 0:00:00]} 42. Re1 {[%emt 0:03:23]} b3 {[%emt 0:09:23]} 43. Re8 {[%emt 0:12:14]} Qb1+ {[%emt 0:01:45]} 44. Kf2 {[%emt 0:00:27]} Qc2+ {[%emt 0:07:24]} 45. Kf3 {[%emt 0:18:16]} Rxe8 {[%emt 0:00:18]} 46. Bxe8 {[%emt 0:00:16]} Qe4+ {[%emt 0:00:03]} 0-1

[Event "FIDE WCCC Open-12 2024"]
[Site "Montesilvano"]
[Date "2024.11.24"]
[Round "9.40"]
[White "Lee, Daniel Joshua"]
[Black "Tona, Leonardo"]
[Result "0-1"]
[ECO "B13"]
[WhiteElo "1765"]
[BlackElo "1906"]
[Annotator "NA RC"]
[PlyCount "108"]
[EventDate "2024.11.18"]
[EventType "swiss"]
[EventCountry "ITA"]
[SourceTitle "playchess.com"]
[Source "ChessBase"]
[SourceQuality "1"]
[TimeControl "5400+30"]

1. e4 {[%emt 0:00:03]} c6 {[%emt 0:00:05]} 2. d4 {[%emt 0:00:04]} d5 {[%emt 0:00:06]} 3. exd5 {[%emt 0:00:04]} cxd5 {[%emt 0:00:06]} 4. Bd3 {[%emt 0:00:04]} Nc6 {[%emt 0:00:13]} 5. c3 {[%emt 0:00:08]} Nf6 {[%emt 0:00:07]} 6. h3 {[%emt 0:00:08]} g6 {[%emt 0:00:13]} 7. Bf4 {[%emt 0:00:04]} Bf5 {[%emt 0:00:19]} 8. Be2 {[%emt 0:00:08]} Bg7 {[%emt 0:00:36]} 9. Nf3 {[%emt 0:00:12]} h5 {[%emt 0:00:24]} 10. Nbd2 {[%emt 0:01:36]} O-O {[%emt 0:02:37]} 11. O-O {[%emt 0:00:23]} Re8 {[%emt 0:00:30]} 12. Re1 {[%emt 0:01:38]} Qd7 {[%emt 0:09:41]} 13. Bb5 {[%emt 0:07:21]} a6 {[%emt 0:02:16]} 14. Ne5 {[%emt 0:02:14]} Qc8 {[%emt 0:00:19]} 15. Nxc6 {[%emt 0:04:52]} bxc6 {[%emt 0:00:34]} 16. Ba4 {[%emt 0:00:24]} Nd7 {[%emt 0:01:27]} 17. Nf3 {[%emt 0:06:02]} f6 {[%emt 0:10:35]} 18. Nh4 {[%emt 0:08:54]} Nb6 {[%emt 0:10:09]} 19. Bb3 {[%emt 0:18:04]} a5 {[%emt 0:07:50]} 20. Nxf5 {[%emt 0:01:19]} Qxf5 {[%emt 0:04:17]} 21. Be3 {[%emt 0:08:53]} Qd7 {[%emt 0:05:29]} 22. Bc2 {[%emt 0:04:11]} f5 {[%emt 0:01:34]} 23. b3 {[%emt 0:02:29]} e6 {[%emt 0:01:46]} 24. Qf3 {[%emt 0:02:40]} Kf7 {[%emt 0:04:05]} 25. Re2 {[%emt 0:08:01]} Qc8 {[%emt 0:11:42]} 26. Rae1 {[%emt 0:04:05]} Nd7 {[%emt 0:02:17]} 27. Qg3 {[%emt 0:06:27]} Nf6 {[%emt 0:02:50]} 28. f3 {[%emt 0:02:13]} Qd7 {[%emt 0:02:38]} 29. Bf4 {[%emt 0:01:48]} Rac8 {[%emt 0:02:56]} 30. Bd3 {[%emt 0:05:55]} Ra8 {[%emt 0:02:18]} 31. h4 {[%emt 0:00:43]} Qa7 {[%emt 0:03:59]} 32. Kh1 {[%emt 0:00:37]} Qb6 {[%emt 0:04:04]} 33. Bc7 {[%emt 0:01:16]} Qb7 {[%emt 0:00:19]} 34. Qd6 {[%emt 0:01:34]} Bf8 {[%emt 0:00:30]} 35. Qf4 {[%emt 0:01:01]} Ra7 {[%emt 0:00:36]} 36. Bd6 {[%emt 0:00:27]} Bxd6 {[%emt 0:00:44]} 37. Qxd6 {[%emt 0:00:04]} Qc7 {[%emt 0:00:31]} 38. Qa3 {[%emt 0:01:35]} Qg3 {[%emt 0:01:58]} 39. Kg1 {[%emt 0:00:31]} Qc7 {[%emt 0:01:26]} 40. Qc1 {[%emt 0:01:29]} Qd6 {[%emt 0:00:51]} 41. Qh6 {[%emt 0:00:41]} Qg3 {[%emt 0:00:46]} 42. c4 {[%emt 0:00:32]} Qxh4 {[%emt 0:00:32]} 43. cxd5 {[%emt 0:01:06]} Qxd4+ {[%emt 0:00:11]} 44. Re3 {[%emt 0:00:00]} Nxd5 {[%emt 0:00:33]} 45. Kh1 {[%emt 0:00:27]} Nxe3 {[%emt 0:00:06]} 46. Rxe3 {[%emt 0:00:04]} Qg7 {[%emt 0:00:16]} 47. Qf4 {[%emt 0:00:11]} Rd7 {[%emt 0:00:26]} 48. Bc4 {[%emt 0:00:36]} Qd4 {[%emt 0:00:33]} 49. Qh6 {[%emt 0:00:31]} Qh4+ {[%emt 0:00:53]} 50. Kg1 {[%emt 0:00:10]} Qd4 {[%emt 0:00:35]} 51. Kh1 {[%emt 0:00:15]} Qh4+ {[%emt 0:01:01]} 52. Kg1 {[%emt 0:00:05]} Rd1+ {[%emt 0:00:12]} 53. Bf1 {[%emt 0:00:04]} Qd4 {[%emt 0:00:25]} 54. g3 {[%emt 0:02:34]} Re1 {[%emt 0:00:28]} 0-1

[Event "FIDE WCCC Open-12 2024"]
[Site "Montesilvano"]
[Date "2024.11.24"]
[Round "9.41"]
[White "Bundan, Edward"]
[Black "Miransh Vyas"]
[Result "0-1"]
[ECO "B12"]
[WhiteElo "1905"]
[BlackElo "1705"]
[Annotator "NA RC"]
[PlyCount "88"]
[EventDate "2024.11.18"]
[EventType "swiss"]
[EventCountry "ITA"]
[SourceTitle "playchess.com"]
[Source "ChessBase"]
[SourceQuality "1"]
[TimeControl "5400+30"]

1. e4 {[%emt 0:00:02]} c6 {[%emt 0:01:04]} 2. d4 {[%emt 0:00:07]} d5 {[%emt 0:00:10]} 3. e5 {[%emt 0:00:05]} Bf5 {[%emt 0:00:06]} 4. Nf3 {[%emt 0:00:05]} e6 {[%emt 0:00:05]} 5. Be2 {[%emt 0:00:12]} a6 {[%emt 0:00:12]} 6. O-O {[%emt 0:00:37]} Bg6 {[%emt 0:00:05]} 7. a4 {[%emt 0:02:49]} c5 {[%emt 0:12:50]} 8. dxc5 {[%emt 0:12:05]} Bxc5 {[%emt 0:00:48]} 9. c3 {[%emt 0:00:44]} Nd7 {[%emt 0:05:06]} 10. a5 {[%emt 0:14:13]} Qc7 {[%emt 0:08:46]} 11. Qa4 {[%emt 0:08:19]} Ne7 {[%emt 0:09:15]} 12. b4 {[%emt 0:09:34]} Ba7 {[%emt 0:03:14]} 13. Bf4 {[%emt 0:10:02]} O-O {[%emt 0:03:26]} 14. Nbd2 {[%emt 0:02:09]} Nc6 {[%emt 0:05:35]} 15. c4 {[%emt 0:04:59]} Ncxe5 {[%emt 0:23:06]} 16. Nxe5 {[%emt 0:00:58]} Nxe5 {[%emt 0:00:55]} 17. Bg3 {[%emt 0:03:31]} Rad8 {[%emt 0:10:16]} 18. Rfc1 {[%emt 0:02:57]} d4 {[%emt 0:03:57]} 19. c5 {[%emt 0:03:27]} d3 {[%emt 0:02:23]} 20. Bf1 {[%emt 0:00:20]} f5 {[%emt 0:03:52]} 21. Bxe5 {[%emt 0:03:26]} Qxe5 {[%emt 0:00:11]} 22. Nc4 {[%emt 0:03:32]} Qd4 {[%emt 0:01:58]} 23. Nd6 {[%emt 0:02:38]} Rxd6 {[%emt 0:01:09]} 24. Bxd3 {[%emt 0:01:13]} Rdd8 {[%emt 0:00:42]} 25. Bc4 {[%emt 0:00:47]} Bf7 {[%emt 0:00:54]} 26. Qb3 {[%emt 0:00:22]} Qf6 {[%emt 0:00:41]} 27. Qf3 {[%emt 0:00:55]} Rd7 {[%emt 0:01:32]} 28. c6 {[%emt 0:01:53]} bxc6 {[%emt 0:00:14]} 29. Bxa6 {[%emt 0:00:43]} Rd2 {[%emt 0:00:38]} 30. Be2 {[%emt 0:01:18]} Rfd8 {[%emt 0:00:57]} 31. Rab1 {[%emt 0:00:40]} Be8 {[%emt 0:00:54]} 32. h3 {[%emt 0:01:08]} e5 {[%emt 0:00:14]} 33. Re1 {[%emt 0:00:42]} e4 {[%emt 0:00:12]} 34. Qb3+ {[%emt 0:01:47]} Bf7 {[%emt 0:00:18]} 35. Qa3 {[%emt 0:00:31]} Qd4 {[%emt 0:00:48]} 36. Qg3 {[%emt 0:00:19]} Bb8 {[%emt 0:00:34]} 37. Qa3 {[%emt 0:00:29]} Qe5 {[%emt 0:00:56]} 38. g3 {[%emt 0:00:40]} f4 {[%emt 0:00:19]} 39. Rbd1 {[%emt 0:01:50]} fxg3 {[%emt 0:00:49]} 40. fxg3 {[%emt 0:00:37]} Ba7+ {[%emt 0:00:35]} 41. Kh2 {[%emt 0:00:25]} e3 {[%emt 0:00:22]} 42. Rc1 {[%emt 0:00:59]} Bb8 {[%emt 0:00:20]} 43. Rg1 {[%emt 0:03:06]} Rxe2+ {[%emt 0:00:09]} 44. Kh1 {[%emt 0:00:12]} Bd5+ {[%emt 0:00:06]} 0-1

[Event "FIDE WCCC Open-12 2024"]
[Site "Montesilvano"]
[Date "2024.11.24"]
[Round "9.43"]
[White "Mikolavicius, Julius"]
[Black "Huseynov, Ahmed"]
[Result "0-1"]
[ECO "C06"]
[WhiteElo "1746"]
[BlackElo "1886"]
[Annotator "NA RC"]
[PlyCount "110"]
[EventDate "2024.11.18"]
[EventType "swiss"]
[EventCountry "ITA"]
[SourceTitle "playchess.com"]
[Source "ChessBase"]
[SourceQuality "1"]
[TimeControl "5400+30"]

1. e4 {[%emt 0:00:01]} e6 {[%emt 0:00:05]} 2. d4 {[%emt 0:00:03]} d5 {[%emt 0:00:04]} 3. Nd2 {[%emt 0:00:05]} Be7 {[%emt 0:00:08]} 4. Ngf3 {[%emt 0:00:06]} Nf6 {[%emt 0:00:07]} 5. e5 {[%emt 0:00:05]} Nfd7 {[%emt 0:00:03]} 6. Bd3 {[%emt 0:00:08]} c5 {[%emt 0:00:04]} 7. c3 {[%emt 0:00:04]} Nc6 {[%emt 0:00:04]} 8. O-O {[%emt 0:00:08]} g5 {[%emt 0:00:10]} 9. dxc5 {[%emt 0:00:18]} Ndxe5 {[%emt 0:12:41]} 10. Bb5 {[%emt 0:00:28]} Bd7 {[%emt 0:00:07]} 11. Bxc6 {[%emt 0:01:13]} Nxc6 {[%emt 0:01:58]} 12. Re1 {[%emt 0:02:58]} Bxc5 {[%emt 0:07:43]} 13. Nb3 {[%emt 0:03:45]} Be7 {[%emt 0:00:08]} 14. Nfd4 {[%emt 0:01:20]} h5 {[%emt 0:10:59]} 15. Qe2 {[%emt 0:10:29]} Qc7 {[%emt 0:02:07]} 16. Nb5 {[%emt 0:08:19]} Qb8 {[%emt 0:01:14]} 17. Be3 {[%emt 0:06:03]} a6 {[%emt 0:02:41]} 18. N5d4 {[%emt 0:01:05]} Qc7 {[%emt 0:02:24]} 19. Nxc6 {[%emt 0:01:12]} Qxc6 {[%emt 0:02:02]} 20. Bd4 {[%emt 0:02:37]} f6 {[%emt 0:01:36]} 21. a4 {[%emt 0:06:46]} Kf7 {[%emt 0:12:20]} 22. Qe3 {[%emt 0:06:13]} e5 {[%emt 0:06:59]} 23. Bc5 {[%emt 0:14:13]} Bd8 {[%emt 0:04:02]} 24. Qd3 {[%emt 0:04:07]} Be6 {[%emt 0:03:26]} 25. Be3 {[%emt 0:06:09]} Be7 {[%emt 0:01:43]} 26. Na5 {[%emt 0:05:18]} Qc7 {[%emt 0:02:16]} 27. b4 {[%emt 0:01:02]} Rac8 {[%emt 0:00:59]} 28. Rec1 {[%emt 0:00:43]} f5 {[%emt 0:04:32]} 29. Nb3 {[%emt 0:01:15]} f4 {[%emt 0:01:30]} 30. Bc5 {[%emt 0:00:32]} Bf6 {[%emt 0:01:35]} 31. a5 {[%emt 0:00:23]} Qc6 {[%emt 0:03:27]} 32. Re1 {[%emt 0:01:09]} h4 {[%emt 0:03:43]} 33. f3 {[%emt 0:01:34]} Rcg8 {[%emt 0:05:27]} 34. h3 {[%emt 0:00:29]} e4 {[%emt 0:01:35]} 35. Qd2 {[%emt 0:01:27]} exf3 {[%emt 0:02:34]} 36. gxf3 {[%emt 0:00:00]} Bxh3 {[%emt 0:00:26]} 37. Nd4 {[%emt 0:00:20]} Qd7 {[%emt 0:00:19]} 38. Kh1 {[%emt 0:02:48]} Re8 {[%emt 0:00:42]} 39. Rad1 {[%emt 0:01:30]} Rxe1+ {[%emt 0:00:26]} 40. Rxe1 {[%emt 0:00:07]} Re8 {[%emt 0:00:05]} 41. Rxe8 {[%emt 0:00:30]} Qxe8 {[%emt 0:00:06]} 42. Kh2 {[%emt 0:01:56]} Bd7 {[%emt 0:00:25]} 43. Qd3 {[%emt 0:00:31]} Qe5 {[%emt 0:01:49]} 44. Qh7+ {[%emt 0:00:38]} Bg7 {[%emt 0:00:06]} 45. Qh5+ {[%emt 0:02:27]} Kg8 {[%emt 0:00:39]} 46. Qg6 {[%emt 0:00:11]} g4 {[%emt 0:00:52]} 47. Qb1 {[%emt 0:02:49]} g3+ {[%emt 0:00:53]} 48. Kh1 {[%emt 0:00:29]} h3 {[%emt 0:00:15]} 49. Qd1 {[%emt 0:00:54]} Qe3 {[%emt 0:04:37]} 50. Nc2 {[%emt 0:01:25]} Qe6 {[%emt 0:00:22]} 51. Qe1 {[%emt 0:02:34]} Qxe1+ {[%emt 0:00:36]} 52. Nxe1 {[%emt 0:00:02]} Bf5 {[%emt 0:00:12]} 53. Bd6 {[%emt 0:00:57]} Bxc3 {[%emt 0:00:11]} 54. Bxf4 {[%emt 0:00:07]} Bxe1 {[%emt 0:00:05]} 55. Bd6 {[%emt 0:00:22]} Bf2 {[%emt 0:00:09]} 0-1

[Event "FIDE WCCC Open-12 2024"]
[Site "Montesilvano"]
[Date "2024.11.24"]
[Round "9.44"]
[White "Shirinov, Yashar"]
[Black "Gazzato, Nicolo`"]
[Result "1/2-1/2"]
[ECO "D85"]
[WhiteElo "1642"]
[BlackElo "1868"]
[Annotator "NA RC"]
[PlyCount "33"]
[EventDate "2024.11.18"]
[EventType "swiss"]
[EventCountry "ITA"]
[SourceTitle "playchess.com"]
[Source "ChessBase"]
[SourceQuality "1"]
[TimeControl "5400+30"]

1. d4 {[%emt 0:00:09]} Nf6 {[%emt 0:00:21]} 2. c4 {[%emt 0:00:13]} g6 {[%emt 0:00:11]} 3. Nc3 {[%emt 0:00:17]} d5 {[%emt 0:00:04]} 4. cxd5 {[%emt 0:00:07]} Nxd5 {[%emt 0:00:05]} 5. Bd2 {[%emt 0:00:13]} Bg7 {[%emt 0:00:13]} 6. e4 {[%emt 0:00:10]} Nxc3 {[%emt 0:00:02]} 7. Bxc3 {[%emt 0:00:09]} Nd7 {[%emt 0:01:38]} 8. Nf3 {[%emt 0:05:29]} O-O {[%emt 0:07:27]} 9. Bd3 {[%emt 0:02:17]} Nb6 {[%emt 0:17:05]} 10. h3 {[%emt 0:05:09]} Be6 {[%emt 0:09:35]} 11. d5 {[%emt 0:15:04]} Bd7 {[%emt 0:03:43]} 12. Bxg7 {[%emt 0:03:11]} Kxg7 {[%emt 0:01:28]} 13. a4 {[%emt 0:00:45]} a5 {[%emt 0:11:48]} 14. O-O {[%emt 0:03:17]} c6 {[%emt 0:07:32]} 15. dxc6 {[%emt 0:02:13]} Bxc6 {[%emt 0:01:39]} 16. b3 {[%emt 0:01:38]} Qd6 {[%emt 0:02:20]} 17. Qe2 {[%emt 0:02:01]} 1/2-1/2